bitfinex-derivatives/quotes_SOLF0:USTF0_20250831
["timestamp","ask_amount","ask_price","bid_price","bid_amount"]
[1756599587109,2.40315353,203.52,203.51,7.86]
[1756599591407,2.40315353,203.52,203.5,0.03442093]
[1756599591603,2.40315353,203.51,203.5,0.03442093]
[1756599592515,9.84315353,203.51,203.5,0.03442093]
[1756599597217,7.44,203.51,203.5,0.03442093]
[1756599597417,9.84457312,203.51,203.5,0.03442093]
[1756599597922,12.73661805,203.51,203.41,4.06605684]
[1756599598119,32.8,203.54,203.35,8.22758723]
[1756599598120,7.44,203.47,203.36,4.06605684]
[1756599598321,7.44,203.47,203.35,7.86]
[1756599598322,7.44,203.45,203.37,7.86]
[1756599598521,2.40499449,203.44,203.37,7.86]
[1756599598721,2.40499449,203.43,203.37,7.86]
[1756599599021,2.40499449,203.42,203.34,7.86]
[1756599599220,2.40499449,203.41,203.34,7.86]
[1756599599525,2.40499449,203.4,203.34,7.86]
[1756599599824,7.44,203.38,203.34,7.86]
[1756599600024,7.44,203.38,203.3,7.86]
[1756599600025,9.84499449,203.37,203.3,7.86]
[1756599600224,2.40499449,203.36,203.3,7.86]
[1756599600419,9.84499449,203.35,203.28,4.06605684]
[1756599600616,2.39204493,203.38,203.28,4.06605684]
[1756599600617,2.40499449,203.34,203.29,7.86]
[1756599600822,2.40584072,203.33,203.27,4.06605684]
[1756599601023,9.83204493,203.38,203.28,7.86]
[1756599601223,2.40587038,203.37,203.28,7.86]
[1756599601422,2.40587038,203.36,203.28,7.86]
[1756599601623,2.40587038,203.35,203.28,7.86]
[1756599601823,2.40587038,203.34,203.28,7.86]
[1756599602019,2.40494789,203.33,203.27,4.06605684]
[1756599602326,9.83204493,203.38,203.28,7.86]
[1756599602526,2.40401038,203.37,203.28,7.86]
[1756599602727,9.84401038,203.36,203.28,7.86]
[1756599602919,25.74,203.41,203.28,7.86]
[1756599602920,7.44,203.34,203.28,7.86]
[1756599603125,7.44,203.32,203.28,7.86]
[1756599603328,2.40401038,203.31,203.28,7.86]
[1756599603523,7.44,203.32,203.28,7.86]
[1756599604242,2.40282173,203.31,203.28,7.86]
[1756599604528,7.44,203.32,203.28,7.86]
[1756599604730,2.40154987,203.31,203.28,7.86]
[1756599604923,7.44,203.32,203.25,7.86]
[1756599605319,9.83204493,203.38,203.27,7.86]
[1756599605524,2.400255,203.37,203.27,7.86]
[1756599605828,2.400255,203.36,203.3,7.86]
[1756599606027,2.400255,203.35,203.3,7.86]
[1756599606232,7.44,203.38,203.3,7.86]
[1756599606528,2.39939685,203.37,203.3,7.86]
[1756599606830,2.39939685,203.36,203.3,7.86]
[1756599607125,7.44,203.38,203.3,7.86]
[1756599607327,2.39914613,203.37,203.3,7.86]
[1756599607529,2.39204493,203.41,203.3,7.86]
[1756599607721,2.39864517,203.4,203.3,7.86]
[1756599607921,2.39864517,203.39,203.3,7.86]
[1756599608118,2.39864517,203.38,203.3,7.86]
[1756599608321,2.39204493,203.41,203.3,7.86]
[1756599608521,2.39830073,203.4,203.3,7.86]
[1756599608731,2.39830073,203.39,203.3,7.86]
[1756599609029,2.39830073,203.38,203.3,7.86]
[1756599609229,2.39204493,203.41,203.3,7.86]
[1756599609431,2.39795753,203.4,203.3,7.86]
[1756599609730,2.39795753,203.39,203.3,7.86]
[1756599609924,2.39795753,203.38,203.3,7.86]
[1756599610121,7.44,203.42,203.32,2.39204493]
[1756599610323,2.39790696,203.41,203.35,2.39204493]
[1756599610531,7.43,203.45,203.36,7.29]
[1756599610728,2.39746891,203.44,203.36,7.29]
[1756599610926,2.39746891,203.43,203.36,7.29]
[1756599611131,7.43,203.45,203.36,7.29]
[1756599611332,2.39723077,203.44,203.36,7.29]
[1756599611635,7.43,203.42,203.36,7.29]
[1756599613731,9.82204493,203.45,203.36,7.29]
[1756599614033,2.39736892,203.44,203.36,7.29]
[1756599614236,2.39736892,203.43,203.36,7.29]
[1756599614430,9.82204493,203.45,203.36,7.29]
[1756599614635,2.39734004,203.44,203.36,7.29]
[1756599614837,2.39734004,203.43,203.36,7.29]
[1756599615031,9.82204493,203.45,203.36,7.29]
[1756599615334,2.39734004,203.44,203.36,7.29]
[1756599615533,2.39734004,203.43,203.36,7.29]
[1756599615834,7.43,203.45,203.36,7.29]
[1756599616033,2.39727716,203.44,203.36,7.29]
[1756599616228,2.39727716,203.43,203.36,7.29]
[1756599616431,7.43,203.45,203.36,7.29]
[1756599616631,2.39627778,203.44,203.36,7.29]
[1756599616832,2.39627778,203.43,203.36,7.29]
[1756599617035,7.43,203.45,203.36,7.29]
[1756599617232,2.39627778,203.44,203.36,7.29]
[1756599617527,2.39627778,203.43,203.36,7.29]
[1756599617733,7.43,203.45,203.36,7.29]
[1756599617932,2.39625227,203.44,203.36,7.29]
[1756599618129,9.82625227,203.43,203.36,7.29]
[1756599618432,7.43,203.41,203.31,7.29]
[1756599618635,2.39625227,203.4,203.31,7.29]
[1756599618830,2.39625227,203.4,203.31,9.68204493]
[1756599619035,2.39625227,203.4,203.32,7.29]
[1756599619237,7.43,203.41,203.32,7.29]
[1756599621636,2.39204493,203.37,203.27,7.29]
[1756599621843,9.82619724,203.36,203.27,7.29]
[1756599622040,2.39619724,203.35,203.27,7.29]
[1756599625042,9.82204493,203.34,203.27,7.29]
[1756599632444,7.43,203.32,203.22,7.29]
[1756599632650,4.78840161,203.31,203.22,7.29]
[1756599632843,2.39635668,203.3,203.22,7.29]
[1756599634355,9.82204493,203.32,203.22,7.29]
[1756599634655,2.39741739,203.31,203.22,7.29]
[1756599634854,7.43,203.29,203.22,7.29]
[1756599636457,7.43,203.29,203.19,4.06605684]
[1756599636458,7.43,203.27,203.19,7.29]
[1756599636656,4.79150606,203.26,203.19,7.29]
[1756599636848,2.39946113,203.25,203.19,7.29]
[1756599637049,9.82946113,203.25,203.16,7.29]
[1756599637254,2.39946113,203.24,203.16,7.29]
[1756599639054,7.43,203.25,203.16,7.29]
[1756599639257,2.39986089,203.24,203.16,7.29]
[1756599639447,2.39989607,203.23,203.16,7.29]
[1756599639648,7.43,203.25,203.16,7.29]
[1756599639858,2.39989607,203.24,203.16,7.29]
[1756599640058,2.39989607,203.23,203.16,7.29]
[1756599640254,7.43,203.25,203.16,7.29]
[1756599640456,2.40011258,203.24,203.16,7.29]
[1756599640656,2.40011258,203.23,203.16,7.29]
[1756599640854,2.40011258,203.22,203.16,7.29]
[1756599641057,7.43,203.25,203.16,7.29]
[1756599641253,2.40008266,203.24,203.16,7.29]
[1756599641449,2.40008266,203.23,203.16,7.29]
[1756599641659,7.43,203.25,203.16,7.29]
[1756599641854,2.40057338,203.24,203.16,7.29]
[1756599642058,2.40057338,203.23,203.16,7.29]
[1756599642256,9.91204493,203.29,203.18,2.39204493]
[1756599642562,2.40009447,203.28,203.19,7.31]
[1756599642763,2.40009447,203.27,203.22,7.31]
[1756599643061,7.52,203.32,203.22,7.31]
[1756599643258,2.40091332,203.31,203.25,7.31]
[1756599643562,2.40091332,203.3,203.25,7.31]
[1756599643860,330.56,203.34,203.25,7.31]
[1756599644161,2.40125678,203.33,203.25,7.31]
[1756599644364,2.40125678,203.32,203.25,7.31]
[1756599644560,2.40125678,203.31,203.25,7.31]
[1756599644756,2.40125678,203.3,203.25,7.31]
[1756599644954,330.56,203.34,203.25,7.31]
[1756599645156,2.40162449,203.33,203.25,7.31]
[1756599645361,2.40162449,203.32,203.25,7.31]
[1756599645557,2.40162449,203.31,203.25,7.31]
[1756599645760,2.40162449,203.3,203.24,2.39204493]
[1756599646063,7.52,203.33,203.25,7.31]
[1756599646262,2.40182401,203.32,203.25,7.31]
[1756599646466,2.40182401,203.31,203.25,7.31]
[1756599646658,2.40182401,203.3,203.25,7.31]
[1756599646862,7.52,203.33,203.25,7.31]
[1756599647063,2.40169309,203.32,203.25,7.31]
[1756599647266,2.40169309,203.31,203.25,7.31]
[1756599647465,2.40169309,203.3,203.24,2.39204493]
[1756599647770,7.52,203.33,203.25,7.31]
[1756599647970,2.40167786,203.32,203.25,7.31]
[1756599648170,2.40167786,203.31,203.25,9.70204493]
[1756599648372,2.40167786,203.3,203.25,2.39204493]
[1756599648570,7.52,203.33,203.26,7.31]
[1756599648870,2.40167404,203.32,203.26,7.31]
[1756599649067,2.40167404,203.31,203.25,2.39204493]
[1756599649273,2.40167404,203.3,203.25,2.39204493]
[1756599649571,7.52,203.33,203.26,7.31]
[1756599649773,2.4016947,203.32,203.26,7.31]
[1756599649968,2.4016947,203.31,203.26,7.31]
[1756599650175,2.4016947,203.3,203.25,2.39204493]
[1756599650671,7.52,203.33,203.26,7.31]
[1756599650877,2.40170109,203.32,203.26,7.31]
[1756599651067,2.40170109,203.31,203.25,2.39204493]
[1756599651373,2.40170109,203.3,203.25,2.39204493]
[1756599651575,7.52,203.33,203.26,7.31]
[1756599651775,2.40172067,203.32,203.26,7.31]
[1756599651975,2.40172067,203.31,203.26,7.31]
[1756599652175,2.40172067,203.3,203.25,2.39204493]
[1756599652377,7.52,203.33,203.26,7.31]
[1756599652581,2.40172691,203.32,203.26,7.31]
[1756599652773,2.40172691,203.31,203.25,2.39204493]
[1756599653076,2.40172691,203.3,203.25,2.39204493]
[1756599653274,7.52,203.33,203.26,7.31]
[1756599653476,2.40179542,203.32,203.26,7.31]
[1756599653676,2.40179542,203.31,203.25,2.39204493]
[1756599653868,2.40179542,203.3,203.25,2.39204493]
[1756599654072,7.52,203.33,203.26,7.31]
[1756599654274,2.40179542,203.32,203.26,7.31]
[1756599654473,2.40179542,203.31,203.25,2.39204493]
[1756599654676,2.40179542,203.3,203.26,7.31]
[1756599654877,7.52,203.33,203.26,7.31]
[1756599655078,2.40188466,203.32,203.26,7.31]
[1756599655277,2.40188466,203.31,203.26,7.31]
[1756599655479,2.40188466,203.3,203.26,7.31]
[1756599655682,7.52,203.33,203.26,7.31]
[1756599655882,2.40219329,203.32,203.26,7.31]
[1756599656083,2.40219329,203.31,203.26,7.31]
[1756599656283,2.40219329,203.3,203.25,2.39204493]
[1756599656481,7.52,203.33,203.26,7.31]
[1756599656678,2.40278438,203.32,203.26,7.31]
[1756599656878,2.40278438,203.31,203.26,7.31]
[1756599657078,7.52,203.33,203.26,7.31]
[1756599657382,2.40276748,203.32,203.26,7.31]
[1756599657582,2.40276748,203.31,203.26,7.31]
[1756599657779,2.40276748,203.3,203.26,7.31]
[1756599658083,7.52,203.33,203.26,7.31]
[1756599658283,2.40332912,203.32,203.26,7.31]
[1756599658482,2.40332912,203.31,203.25,2.39204493]
[1756599658783,2.40332912,203.3,203.26,7.31]
[1756599659081,7.52,203.33,203.26,7.31]
[1756599659277,2.40393556,203.32,203.26,7.31]
[1756599659581,2.40393556,203.31,203.25,2.39204493]
[1756599659781,2.40393556,203.3,203.25,2.39204493]
[1756599660085,7.52,203.33,203.26,7.31]
[1756599660286,2.40466543,203.32,203.26,7.31]
[1756599660582,7.52,203.33,203.26,7.31]
[1756599660884,2.40528445,203.32,203.26,7.31]
[1756599661184,2.40528445,203.31,203.26,7.31]
[1756599661376,2.40528445,203.3,203.26,7.31]
[1756599661580,7.52,203.33,203.26,7.31]
[1756599661581,2.40528445,203.29,203.26,7.31]
[1756599661783,7.52,203.33,203.26,7.31]
[1756599661984,2.40621225,203.32,203.26,7.31]
[1756599662184,2.40621225,203.31,203.29,7.31]
[1756599662384,7.52,203.38,203.3,7.31]
[1756599662584,2.40696982,203.37,203.3,7.31]
[1756599662782,2.40696982,203.36,203.3,7.31]
[1756599662984,2.40696982,203.35,203.29,9.70204493]
[1756599663181,2.40696982,203.34,203.29,2.39204493]
[1756599663483,7.52,203.36,203.29,2.39204493]
[1756599663484,2.40696982,203.33,203.29,2.39204493]
[1756599663681,2.40696982,203.32,203.3,7.31]
[1756599663883,2.40696982,203.31,203.3,7.31]
[1756599665882,7.52,203.39,203.3,7.31]
[1756599666089,2.40911712,203.38,203.33,7.31]
[1756599666279,2.40911712,203.37,203.33,7.31]
[1756599666479,10.4,203.43,203.33,11.37605684]
[1756599666480,2.40911712,203.36,203.33,11.37605684]
[1756599666678,2.40911712,203.35,203.34,7.31]
[1756599666983,7.52,203.43,203.35,7.31]
[1756599667181,2.40893645,203.42,203.37,7.31]
[1756599667487,2.40893645,203.41,203.37,2.39204493]
[1756599667684,7.87,203.39,203.35,4.10014365]
[1756599667884,10.27893645,203.38,203.33,11.56014365]
[1756599668086,10.27893645,203.37,203.33,7.46]
[1756599668389,2.40893645,203.36,203.33,7.46]
[1756599668682,2.40893645,203.35,203.32,7.46]
[1756599668888,2.40893645,203.34,203.32,7.46]
[1756599669078,7.87,203.37,203.31,6.49218858]
[1756599669283,2.40744626,203.36,203.32,7.46]
[1756599669484,2.40744626,203.35,203.31,6.49218858]
[1756599669682,2.40744626,203.34,203.32,7.46]
[1756599669888,7.87,203.37,203.31,13.95218858]
[1756599670083,2.40699113,203.36,203.32,7.46]
[1756599670284,2.40683846,203.35,203.31,6.49218858]
[1756599670484,7.87,203.37,203.31,6.49218858]
[1756599670485,7.87,203.37,203.32,7.46]
[1756599670688,2.40654419,203.36,203.31,6.49218858]
[1756599670880,10.27654419,203.35,203.31,6.49218858]
[1756599671085,10.27654419,203.34,203.28,13.95218858]
[1756599671391,2.40654419,203.33,203.29,7.46]
[1756599671686,2.40673936,203.32,203.29,7.46]
[1756599671888,2.40673936,203.32,203.28,6.49218858]
[1756599671889,7.87,203.34,203.28,13.95218858]
[1756599672190,2.40673936,203.33,203.29,7.46]
[1756599672386,2.40673936,203.32,203.29,7.46]
[1756599672585,7.87,203.39,203.29,7.46]
[1756599672786,2.40658224,203.38,203.29,11.56014365]
[1756599673086,2.40658224,203.37,203.29,7.46]
[1756599673286,2.40658224,203.36,203.29,7.46]
[1756599673486,2.40658224,203.35,203.29,7.46]
[1756599673785,10.27658224,203.34,203.28,2.39204493]
[1756599673986,10.27658224,203.34,203.27,11.56014365]
[1756599673987,2.4066925,203.33,203.27,7.46]
[1756599674290,2.4066925,203.32,203.26,11.56014365]
[1756599674485,2.4066925,203.31,203.26,4.10014365]
[1756599674688,7.87,203.34,203.27,7.46]
[1756599674689,2.4066925,203.3,203.27,7.46]
[1756599674890,7.87,203.34,203.27,7.46]
[1756599675085,2.40667275,203.33,203.27,7.46]
[1756599675391,7.87,203.34,203.23,4.10014365]
[1756599675392,7.87,203.31,203.23,4.10014365]
[1756599675591,2.40667275,203.3,203.22,11.56014365]
[1756599675790,7.87,203.31,203.22,11.56014365]
[1756599675791,2.40667275,203.29,203.22,11.56014365]
[1756599675990,2.40667275,203.28,203.22,11.56014365]
[1756599676190,10.27667275,203.27,203.23,7.46]
[1756599676492,2.40667275,203.26,203.23,7.46]
[1756599676791,7.87,203.27,203.23,7.46]
[1756599676991,2.40675962,203.26,203.23,7.46]
[1756599677186,7.87,203.33,203.23,7.46]
[1756599677387,7.87,203.31,203.23,7.46]
[1756599677681,7.87,203.29,203.22,4.10014365]
[1756599677886,2.40684767,203.28,203.2,11.56024947]
[1756599678082,10.27684767,203.27,203.18,6.4922944]
[1756599678296,7.87,203.25,203.18,2.39204493]
[1756599678584,2.40684767,203.24,203.17,4.10024947]
[1756599678788,2.40684767,203.23,203.17,4.10024947]
[1756599678990,10.27684767,203.22,203.18,7.46]
[1756599679294,2.40684767,203.21,203.18,7.46]
[1756599679595,7.87,203.22,203.18,7.46]
[1756599679786,2.40623167,203.21,203.18,7.46]
[1756599679985,7.87,203.22,203.18,7.46]
[1756599680192,2.40623167,203.21,203.18,7.46]
[1756599680486,7.87,203.22,203.18,7.46]
[1756599680690,2.40566573,203.21,203.18,7.46]
[1756599681091,7.87,203.27,203.16,4.10024947]
[1756599681285,7.87,203.27,203.15,9.85204493]
[1756599681286,2.39204493,203.22,203.15,4.10024947]
[1756599681487,7.87,203.2,203.11,7.46]
[1756599681690,7.87,203.18,203.08,6.4922944]
[1756599681892,7.87,203.16,203.08,6.4922944]
[1756599682090,2.40566573,203.15,203.08,4.10024947]
[1756599682394,2.40566573,203.14,203.07,9.85204493]
[1756599682582,2.40566573,203.13,203.07,9.85204493]
[1756599682889,7.87,203.16,203.07,9.85204493]
[1756599683194,7.87,203.12,203.08,7.46]
[1756599683691,7.87,203.1,203.03,7.46]
[1756599683892,7.87,203.1,203.0,5.44188047]
[1756599683893,2.40242074,203.09,203.0,6.4922944]
[1756599684193,2.40242074,203.08,203.0,9.85204493]
[1756599684396,2.40242074,203.07,203.0,9.85204493]
[1756599684585,7.87,203.1,203.0,2.39204493]
[1756599684783,7.87,203.1,203.03,2.39204493]
[1756599684784,2.39974126,203.09,203.03,2.39204493]
[1756599684989,11.6,203.16,203.04,7.46]
[1756599685192,10.26951858,203.15,203.04,7.46]
[1756599685393,2.39951858,203.14,203.05,2.39204493]
[1756599685592,2.39951858,203.13,203.05,2.39204493]
[1756599685788,2.39951858,203.12,203.05,2.39204493]
[1756599685992,2.39951858,203.11,203.05,2.39204493]
[1756599686187,7.87,203.15,203.05,2.39204493]
[1756599686389,2.39542152,203.14,203.05,2.39204493]
[1756599686692,2.39542152,203.13,203.05,2.39204493]
[1756599686894,2.39542152,203.12,203.05,2.39204493]
[1756599687095,7.87,203.15,203.05,2.39204493]
[1756599687398,2.39543138,203.14,203.05,2.39204493]
[1756599687597,2.39543138,203.13,203.05,2.39204493]
[1756599687797,2.39543138,203.12,203.05,2.39204493]
[1756599687994,7.87,203.15,203.05,2.39204493]
[1756599688195,7.87,203.13,203.05,2.39204493]
[1756599688396,2.39364512,203.12,203.04,7.46]
[1756599688592,7.87,203.11,203.04,7.46]
[1756599690692,7.87,203.15,203.04,7.46]
[1756599690895,2.38869566,203.14,203.04,7.46]
[1756599691091,2.38869566,203.13,203.04,7.46]
[1756599691291,7.87,203.15,203.04,7.46]
[1756599691492,2.38768218,203.14,203.04,7.46]
[1756599691690,2.38733948,203.13,203.04,7.46]
[1756599691891,7.87,203.15,203.04,7.46]
[1756599692089,2.38733948,203.14,203.04,7.46]
[1756599692296,2.38733948,203.13,203.04,7.46]
[1756599692494,7.87,203.15,203.04,7.46]
[1756599692692,2.38617078,203.14,203.04,7.46]
[1756599692888,2.38617078,203.13,203.04,7.46]
[1756599693190,7.87,203.15,203.04,7.46]
[1756599693395,2.38544913,203.14,203.04,7.46]
[1756599693699,7.87,203.15,203.04,7.46]
[1756599693896,2.38512314,203.14,203.04,7.46]
[1756599694096,7.87,203.15,203.04,7.46]
[1756599694290,2.38512314,203.14,203.04,7.46]
[1756599694495,7.87,203.15,203.04,7.46]
[1756599694697,2.38417852,203.14,203.04,7.46]
[1756599694893,7.87,203.15,203.04,7.46]
[1756599695100,2.38417852,203.14,203.04,7.46]
[1756599695296,7.87,203.15,203.04,7.46]
[1756599695600,2.38363528,203.14,203.05,2.39204493]
[1756599695899,7.87,203.15,203.05,2.39204493]
[1756599696093,2.38332666,203.14,203.05,2.39204493]
[1756599696294,7.87,203.15,203.05,2.39204493]
[1756599696495,2.38263109,203.14,203.05,2.39204493]
[1756599696694,7.87,203.15,203.05,2.39204493]
[1756599697001,7.87,203.15,203.06,7.46]
[1756599698000,0.85700565,203.19,202.98,12.88]
[1756599698001,7.55,203.19,203.1,7.9]
[1756599698201,7.55,203.19,203.13,7.9]
[1756599699097,2.39204493,203.21,203.08,2.39204493]
[1756599699303,9.93140977,203.2,203.09,7.9]
[1756599699494,7.55,203.18,203.09,7.9]
[1756599709308,2.38372225,203.17,203.09,7.9]
[1756599709507,7.55,203.18,203.09,7.9]
[1756599709704,2.38372225,203.17,203.09,7.9]
[1756599709907,7.55,203.18,203.09,7.9]
[1756599710107,2.38372225,203.17,203.09,7.9]
[1756599710414,7.55,203.18,203.09,7.9]
[1756599710613,2.38447176,203.17,203.09,7.9]
[1756599710807,7.55,203.18,203.09,7.9]
[1756599711007,2.38447176,203.17,203.09,7.9]
[1756599711208,7.55,203.18,203.09,7.9]
[1756599711410,2.38565734,203.17,203.09,7.9]
[1756599711607,7.55,203.18,203.09,7.9]
[1756599711807,2.38565734,203.17,203.09,7.9]
[1756599712006,7.55,203.18,203.09,7.9]
[1756599712201,2.38565734,203.17,203.09,7.9]
[1756599712409,7.55,203.18,203.11,7.9]
[1756599712908,7.55,203.22,203.14,7.9]
[1756599713210,2.38758311,203.21,203.14,7.9]
[1756599713411,2.38894391,203.2,203.14,7.9]
[1756599713611,2.38894391,203.19,203.14,7.9]
[1756599713807,7.55,203.22,203.14,7.9]
[1756599714008,2.38927792,203.21,203.14,7.9]
[1756599714211,2.38927792,203.2,203.14,7.9]
[1756599714512,7.55,203.22,203.14,7.9]
[1756599714708,2.39102033,203.21,203.14,7.9]
[1756599714910,2.39102033,203.2,203.14,7.9]
[1756599715111,7.55,203.22,203.14,7.9]
[1756599715311,2.39102023,203.21,203.14,7.9]
[1756599715510,2.39102023,203.2,203.14,7.9]
[1756599715711,2.39102023,203.19,203.13,2.39204493]
[1756599715912,7.55,203.22,203.14,7.9]
[1756599716108,2.39314485,203.21,203.14,7.9]
[1756599716314,2.39314485,203.2,203.14,7.9]
[1756599716510,2.39314485,203.19,203.13,2.39204493]
[1756599716714,2.39314485,203.18,203.13,2.39204493]
[1756599716914,7.55,203.22,203.14,7.9]
[1756599717114,2.39488148,203.21,203.14,7.9]
[1756599717314,2.39488148,203.2,203.14,7.9]
[1756599717509,7.55,203.22,203.13,2.39204493]
[1756599717510,2.39488148,203.19,203.13,2.39204493]
[1756599717716,2.39488148,203.18,203.14,7.9]
[1756599717916,7.55,203.22,203.14,7.9]
[1756599718117,2.39685084,203.21,203.14,7.9]
[1756599718316,2.39685084,203.2,203.14,7.9]
[1756599718514,2.39685084,203.19,203.13,2.39204493]
[1756599718715,2.39685084,203.18,203.14,7.9]
[1756599718914,7.55,203.22,203.13,2.39204493]
[1756599718915,2.39685084,203.17,203.13,2.39204493]
[1756599719116,7.55,203.22,203.14,7.9]
[1756599719318,2.40101703,203.21,203.14,7.9]
[1756599719511,2.40101703,203.2,203.14,7.9]
[1756599719719,2.40101703,203.19,203.17,7.9]
[1756599719918,7.55,203.25,203.17,7.9]
[1756599720113,2.40068489,203.24,203.19,2.39204493]
[1756599720315,2.40068489,203.23,203.2,7.9]
[1756599720622,2.40068489,203.22,203.19,2.39204493]
[1756599720819,2.40068489,203.21,203.2,7.9]
[1756599721123,7.55,203.29,203.2,7.9]
[1756599721423,7.55,203.27,203.2,7.9]
[1756599721610,2.40405024,203.26,203.21,7.9]
[1756599721815,2.40405024,203.25,203.2,2.39204493]
[1756599722011,2.40405024,203.24,203.21,7.9]
[1756599722213,2.40405024,203.23,203.21,7.9]
[1756599722413,2.40405024,203.22,203.21,7.9]
[1756599722814,2.40423684,203.22,203.21,7.9]
[1756599725617,7.55,203.32,203.22,7.9]
[1756599725814,7.55,203.32,203.25,7.9]
[1756599727219,7.55,203.36,203.25,7.9]
[1756599728827,2.39204493,203.34,203.25,7.9]
[1756599729021,8.0,203.33,203.21,2.39204493]
[1756599729221,8.0,203.33,203.22,7.76]
[1756599742128,8.0,203.33,203.27,2.39204493]
[1756599742432,330.78,203.39,203.27,2.39204493]
[1756599742433,8.0,203.37,203.28,7.76]
[1756599742730,10.39204493,203.37,203.28,7.76]
[1756599745134,8.0,203.37,203.28,7.76]
[1756599747132,10.39204493,203.37,203.23,7.76]
[1756599747436,10.39204493,203.37,203.23,10.15204493]
[1756599747437,8.0,203.36,203.23,10.15204493]
[1756599748030,8.0,203.36,203.23,2.39204493]
[1756599748336,8.0,203.36,203.24,7.76]
[1756599752131,8.0,203.34,203.24,7.76]
[1756599752535,8.0,203.34,203.26,7.76]
[1756599756645,8.0,203.37,203.29,7.76]
[1756599767249,8.0,203.37,203.31,2.39204493]
[1756599767455,7.81,203.38,203.31,9.73204493]
[1756599767855,7.81,203.38,203.31,7.34]
[1756599769149,121.62,203.39,203.31,7.34]
[1756599769357,121.62,203.39,203.33,9.73204493]
[1756599772958,7.81,203.4,203.33,9.73204493]
[1756599772959,129.43,203.4,203.33,9.73204493]
[1756599776760,124.01204493,203.4,203.29,7.34]
[1756599776966,7.81,203.39,203.29,7.34]
[1756599778764,7.81,203.39,203.27,4.10024947]
[1756599779061,2.39204493,203.37,203.26,11.44024947]
[1756599779266,7.81,203.36,203.26,7.34]
[1756599779471,7.81,203.34,203.26,7.34]
[1756599780471,7.81,203.34,203.26,11.44024947]
[1756599780969,7.81,203.34,203.26,4.10024947]
[1756599781266,7.81,203.34,203.27,7.34]
[1756599781668,7.81,203.34,203.29,7.34]
[1756599781866,7.81,203.34,203.28,2.39204493]
[1756599782169,7.81,203.34,203.28,9.73204493]
[1756599783272,7.81,203.34,203.28,7.34]
[1756599784668,7.81,203.34,203.26,4.10024947]
[1756599784971,10.20204493,203.34,203.25,7.34]
[1756599786477,10.20204493,203.34,203.23,4.10024947]
[1756599786678,2.39204493,203.31,203.22,11.44024947]
[1756599786976,7.81,203.3,203.22,11.44024947]
[1756599787377,7.81,203.3,203.22,7.34]
[1756599790474,27.72204493,203.3,203.22,7.34]
[1756599790974,27.72204493,203.3,203.19,7.63]
[1756599791779,7.33,203.26,203.19,7.63]
[1756599796283,7.33,203.31,203.2,7.63]
[1756599799487,36.37,203.31,203.2,7.63]
[1756599800091,7.33,203.25,203.16,7.63]
[1756599802495,7.33,203.22,203.16,7.63]
[1756599810300,9.72204493,203.25,203.16,7.63]
[1756599810491,9.72204493,203.25,203.16,10.02204493]
[1756599810492,7.33,203.25,203.16,10.02204493]
[1756599810698,7.33,203.25,203.17,7.63]
[1756599817305,330.58,203.35,203.19,2.39204493]
[1756599817506,7.31,203.3,203.2,7.38]
[1756599818810,7.31,203.27,203.2,7.38]
[1756599821105,2.39204493,203.25,203.17,7.38]
[1756599821407,7.31,203.24,203.17,7.38]